fUSD/lending_fUSD_20251013
["ID","MTS","AMOUNT","RATE_DAILY","PERIOD"]
[391129043,1760379048842,-306.20374743,0.00027561,60]
[391129044,1760379048851,-500.0,0.00027561,60]
[391129045,1760379048861,-500.0,0.00027561,60]
[391129046,1760379048871,-200.0,0.00027564,2]
[391129047,1760379048880,-168.0,0.00027568,2]
[391129048,1760379048890,-500.0,0.00027616,60]
[391129049,1760379048900,-500.0,0.00027616,60]
[391129050,1760379048910,-150.0,0.00027616,60]
[391129051,1760379048919,-150.0,0.00027616,60]
[391129052,1760379048929,-500.0,0.00027616,60]
[391129053,1760379048938,-500.0,0.00027616,60]
[391129054,1760379048947,-150.0,0.00027616,60]
[391129055,1760379048955,-288.86319285,0.00027616,60]
[391129056,1760379048964,-150.0,0.00027616,60]
[391129057,1760379048972,-500.0,0.00027616,60]
[391129058,1760379048980,-500.0,0.00027616,60]
[391129059,1760379048988,-500.0,0.00027616,60]
[391129060,1760379048997,-559.0,0.00027616,60]
[391129061,1760379049006,-500.0,0.00027616,60]
[391129062,1760379049016,-1047.0,0.00027616,14]
[391129063,1760379049025,-448.0,0.00027616,60]
[391129064,1760379049034,-500.0,0.00027616,60]
[391129065,1760379049043,-500.0,0.00027616,60]
[391129066,1760379049051,-528.06180647,0.00027635,120]
[391129067,1760379049061,-634.00917986,0.00027635,120]
[391129068,1760379049074,-178.0,0.00027642,120]
[391129069,1760379049089,-168.0,0.00027656,2]
[391129070,1760379049099,-500.0,0.00027671,60]
[391129071,1760379049108,-250.0,0.00027671,60]
[391129072,1760379049118,-441.3839637,0.00027671,60]
[391129073,1760379049127,-250.0,0.00027671,60]
[391129074,1760379049137,-500.0,0.00027671,60]
[391129075,1760379049146,-500.0,0.00027671,60]
[391129076,1760379049157,-500.0,0.00027671,60]
[391129077,1760379049167,-559.0,0.00027671,60]
[391129078,1760379049176,-500.0,0.00027671,60]
[391129079,1760379049186,-1047.0,0.00027671,14]
[391129080,1760379049195,-448.0,0.00027671,60]
[391129081,1760379049205,-500.0,0.00027671,60]
[391129082,1760379049214,-500.0,0.00027671,60]
[391129083,1760379049224,-519.9,0.0002769,2]
[391129084,1760379049234,-500.0,0.00027726,60]
[391129085,1760379049243,-500.0,0.00027726,60]
[391129086,1760379049253,-500.0,0.00027726,60]
[391129087,1760379049263,-500.0,0.00027726,60]
[391129088,1760379049273,-559.0,0.00027726,60]
[391129089,1760379049282,-500.0,0.00027726,60]
[391129090,1760379049292,-1047.0,0.00027726,14]
[391129091,1760379049302,-448.0,0.00027726,60]
[391129092,1760379049311,-500.0,0.00027726,60]
[391129093,1760379049322,-500.0,0.00027726,60]
[391129094,1760379049332,-152.0,0.00027759,5]
[391129095,1760379049341,-235.06784831,0.00027781,60]
[391129096,1760379049351,-500.0,0.00027781,60]
[391129097,1760379049359,-500.0,0.00027781,60]
[391129098,1760379049369,-500.0,0.00027781,60]
[391129099,1760379049379,-559.0,0.00027781,60]
[391129100,1760379049388,-500.0,0.00027781,60]
[391129101,1760379049399,-1047.0,0.00027781,14]
[391129102,1760379049409,-448.0,0.00027781,60]
[391129103,1760379049419,-500.0,0.00027781,60]
[391129104,1760379049429,-500.0,0.00027781,60]
[391129105,1760379049439,-500.0,0.00027835,60]
[391129106,1760379049450,-500.0,0.00027835,60]
[391129107,1760379049460,-500.0,0.00027835,60]
[391129108,1760379049470,-559.0,0.00027835,60]
[391129109,1760379049480,-150.0,0.00027835,60]
[391129110,1760379049489,-1047.0,0.00027835,14]
[391129111,1760379049499,-448.0,0.00027835,60]
[391129112,1760379049508,-500.0,0.00027835,60]
[391129113,1760379049517,-500.0,0.00027835,60]
[391129114,1760379049526,-200.0,0.0002784,2]
[391129115,1760379049536,-300.0,0.00027879,10]
[391129116,1760379049544,-500.0,0.0002789,60]
[391129117,1760379049554,-500.0,0.0002789,60]
[391129118,1760379049563,-559.0,0.0002789,60]
[391129119,1760379049573,-1047.0,0.0002789,14]
[391129120,1760379049583,-448.0,0.0002789,60]
[391129121,1760379049592,-500.0,0.0002789,60]
[391129122,1760379049601,-500.0,0.0002789,60]
[391129123,1760379049610,-835.0,0.000279,2]
[391129124,1760379049619,-500.0,0.00027945,60]
[391129125,1760379049628,-500.0,0.00027945,60]
[391129126,1760379049638,-559.0,0.00027945,60]
[391129127,1760379049647,-1047.0,0.00027945,14]
[391129128,1760379049657,-448.0,0.00027945,60]
[391129129,1760379049666,-500.0,0.00027945,60]
[391129130,1760379049676,-500.0,0.00027945,60]
[391129131,1760379049686,-153.15329576,0.00027975,2]
[391129132,1760379049695,-500.0,0.00028,60]
[391129133,1760379049705,-500.0,0.00028,60]
[391129134,1760379049714,-559.0,0.00028,60]
[391129135,1760379049723,-1047.0,0.00028,14]
[391129136,1760379050092,-448.0,0.00028,60]
[391129137,1760379050103,-500.0,0.00028,60]
[391129138,1760379050113,-500.0,0.00028,60]
[391129139,1760379050123,-1048.59188516,0.00028,120]
[391129140,1760379050138,-151.40811484,0.00028,120]
[391129141,1760379050148,-667.58238595,0.00028,120]
[391129142,1760379050159,-238.36153408,0.00028028,10]
[391129143,1760379050171,-61.63846592,0.00028028,10]
[391129144,1760379050180,-386.86464907,0.00028042,2]
[391129145,1760379141771,800.0,0.00026986,120]
[391129151,1760379310340,201.0,0.00025497,120]
[391129152,1760379311612,201.0,0.00026772,120]
[391129157,1760379609404,172.0,0.00025486,120]
[391129158,1760379610884,172.0,0.00026761,120]
[391129159,1760379911148,173.0,0.00025479,120]
[391129160,1760379912414,173.0,0.00026753,120]
[391129164,1760379967050,295.15699401,0.0002739,120]
[391129171,1760380098955,244.999999,0.00027397,120]
[391129188,1760380231743,-488.64905,0.00013685,2]
[391129189,1760380231765,-352.44863603,0.00013754,2]
[391129190,1760380231851,-789.61798905,0.00013754,2]
[391129191,1760380231864,-503.0,0.00013884,2]
[391129192,1760380231884,-2983.01,0.00013974,2]
[391129193,1760380231898,-250.0,0.00013974,7]
[391129194,1760380231959,-947.48714821,0.000149,2]
[391129195,1760380231983,-891.52786675,0.00014958,2]
[391129196,1760380232004,-150.0,0.00014998,2]
[391129197,1760380232023,-500.0,0.00014999,2]
[391129198,1760380232042,-500.0,0.00014999,2]
[391129199,1760380232064,-500.0,0.00014999,2]
[391129200,1760380232081,-500.0,0.00014999,2]
[391129201,1760380232103,-500.0,0.00014999,2]
[391129202,1760380232121,-500.0,0.00014999,2]
[391129203,1760380232139,-150.82281451,0.00014999,2]
[391129204,1760380232160,-349.17718549,0.00014999,2]
[391129205,1760380232178,-353.5613747,0.00014999,2]
[391129206,1760380232199,-146.4386253,0.00014999,2]
[391129207,1760380232215,-500.0,0.00014999,2]
[391129208,1760380232233,-500.0,0.00014999,2]
[391129209,1760380232249,-500.0,0.00014999,2]
[391129213,1760380232270,-500.0,0.00014999,2]
[391129219,1760380232288,-500.0,0.00014999,2]
[391129225,1760380232306,-500.0,0.00014999,2]
[391129231,1760380232323,-522.45727597,0.00014999,2]
[391129234,1760380232341,-500.0,0.00014999,2]
[391129237,1760380232360,-500.0,0.00014999,2]
[391129239,1760380232376,-500.0,0.00014999,2]
[391129242,1760380232395,-500.0,0.00014999,2]
[391129244,1760380232411,-500.0,0.00014999,2]
[391129245,1760380232427,-500.0,0.00014999,2]
[391129246,1760380232447,-500.0,0.00014999,2]
[391129247,1760380232465,-500.0,0.00014999,2]
[391129248,1760380232482,-500.0,0.00014999,2]
[391129249,1760380232499,-171.06505905,0.00014999,2]
[391129250,1760380232515,-165.72548955,0.00014999,2]
[391129251,1760380232532,-625.97003749,0.00014999,2]
[391129252,1760380232549,-1057.552,0.00015,2]
[391129253,1760380232564,-1000.0,0.00015,2]
[391129254,1760380232581,-1000.0,0.00015,2]
[391129255,1760380232597,-1000.0,0.00015,2]
[391129256,1760380232613,-950.325,0.00015,2]
[391129257,1760380232630,-1000.0,0.00015,2]
[391129258,1760380232646,-1000.0,0.00015,2]
[391129259,1760380232661,-299.754,0.00015,2]
[391129260,1760380232676,-392.547,0.00015,2]
[391129261,1760380232693,-8124.16370482,0.00015,2]
[391129262,1760380232712,-404.53844161,0.00015,2]
[391129263,1760380232730,-1114.63276947,0.00015,2]
[391129264,1760380232749,-672.06598027,0.00015,2]
[391129265,1760380232768,-531.67165279,0.00015,2]
[391129266,1760380232796,-434.94977992,0.00015,2]
[391129267,1760380232829,-2974.22771102,0.00015,2]
[391129269,1760380237749,-159.80927871,0.00014953,2]
[391129270,1760380237764,-2418.52572789,0.00015,2]
[391129271,1760380237804,-51689.76450644,0.00015,2]
[391129629,1760380241172,-1013.6829992,0.00015,2]
[391129631,1760380241183,-1549.12899847,0.00015,2]
[391129634,1760380241194,-544.90783643,0.00015,2]
[391129636,1760380241205,-1135.21814114,0.00015,2]
[391129638,1760380241216,-726.98500007,0.00015,2]
[391129640,1760380241227,-1577.5678495,0.00015,2]
[391129642,1760380241238,-2244.0,0.00015,2]
[391129645,1760380241248,-482.25934277,0.00015,2]
[391129647,1760380241259,-4490.48600002,0.00015,2]
[391129649,1760380241270,-1658.3178,0.00015,2]
[391129828,1760380243004,-545.8000004,0.00015,2]
[391129831,1760380243016,-128869.69003143,0.00015,2]
[391129833,1760380243025,-110896.65761101,0.00015,2]
[391129835,1760380243035,-2500.0,0.00015053,2]
[391129837,1760380243045,-153.15329576,0.00015058,2]
[391129839,1760380243055,-2500.0,0.0001513,2]
[391129841,1760380243064,-153.15329576,0.00016097,2]
[391129843,1760380243073,-194.0,0.00016123,2]
[391129845,1760380243082,-947.4871482,0.00016541,2]
[391129847,1760380243092,-891.52786675,0.00016593,2]
[391129849,1760380243101,-153.15329576,0.00017135,2]
[391129851,1760380243111,-3764.35,0.00017728,2]
[391129853,1760380243122,-150.99,0.00017728,2]
[391129855,1760380243131,-150.99,0.00017728,2]
[391129857,1760380243140,-1219.93,0.00017728,2]
[391129859,1760380243149,-9999.99,0.00017728,2]
[391129861,1760380243158,-200.0,0.00017918,2]
[391129863,1760380243167,-311.63557553,0.00017918,2]
[391129865,1760380243177,-151.0,0.00017918,2]
[391129867,1760380243186,-151.0,0.00017918,2]
[391129869,1760380243195,-500.0,0.00017918,2]
[391129871,1760380243205,-151.0,0.00017918,2]
[391129873,1760380243215,-500.0,0.00017918,2]
[391129875,1760380243224,-63.77150142,0.00017918,2]
[391129878,1760380243236,-87.22849858,0.00017918,2]
[391129880,1760380243245,-500.0,0.00017918,2]
[391129882,1760380243254,-500.0,0.00017918,2]
[391129884,1760380243263,-151.0,0.00017918,2]
[391129886,1760380243272,-171.83878009,0.00017918,2]
[391129888,1760380243282,-151.0,0.00017918,2]
[391129890,1760380243292,-151.0,0.00017918,2]
[391129892,1760380243301,-151.0,0.00017918,2]
[391129894,1760380243311,-151.0,0.00017918,2]
[391129896,1760380243321,-151.0,0.00017918,2]
[391129898,1760380243330,-151.0,0.00017918,2]
[391129900,1760380243339,-200.0,0.00017918,2]
[391129901,1760380243348,-151.0,0.00017918,2]
[391129902,1760380243357,-151.0,0.00017918,2]
[391129903,1760380243367,-151.0,0.00017918,2]
[391129904,1760380243375,-151.0,0.00017918,2]
[391129906,1760380243387,-155.02238158,0.00017918,2]
[391129907,1760380243399,-151.0,0.00017918,2]
[391129909,1760380243407,-151.0,0.00017918,2]
[391129911,1760380243416,-151.0,0.00017918,2]
[391129913,1760380243426,-151.0,0.00017918,2]
[391129915,1760380243435,-151.0,0.00017918,2]
[391129917,1760380243444,-151.0,0.00017918,2]
[391129920,1760380243453,-151.0,0.00017918,2]
[391129922,1760380243463,-151.0,0.00017918,2]
[391129924,1760380243472,-151.0,0.00017918,2]
[391129926,1760380243481,-155.2589367,0.00017918,2]
[391129928,1760380243490,-475.32661018,0.00017928,2]
[391129930,1760380243501,-153.15329576,0.00018174,2]
[391129932,1760380243510,-947.4871482,0.00018183,2]
[391129934,1760380243519,-891.52786675,0.00018228,2]
[391129936,1760380243528,-268.0,0.00018318,2]
[391129938,1760380243537,-9083.05578406,0.00018351,2]
[391129940,1760380243546,-200.0,0.00018466,2]
[391129942,1760380243556,-322.6107,0.00018599,2]
[391129944,1760380243565,-670.58624095,0.00018599,2]
[391129946,1760380243574,-479.69713436,0.00018599,2]
[391129948,1760380243584,-1000.0,0.00018599,2]
[391129950,1760380243592,-1000.0,0.00018599,2]
[391129952,1760380243602,-1000.0,0.00018599,2]
[391129954,1760380243611,-159.80927871,0.00018633,2]
[391129956,1760380243619,-153.15329576,0.00019213,2]
[391129958,1760380243628,-947.4871482,0.00019824,2]
[391129960,1760380243637,-891.52786675,0.00019863,2]
[391129962,1760380243646,-153.15329576,0.00020252,2]
[391129964,1760380243655,-153.15329576,0.0002129,2]
[391129966,1760380243665,-891.52786675,0.00021498,2]
[391129968,1760380243675,-5000.0,0.00021918,2]
[391129970,1760380243684,-1472.57913059,0.000222,2]
[391129972,1760380243693,-153.15329576,0.00022329,2]
[391129974,1760380243703,-1182.0,0.00022603,2]
[391129976,1760380243712,-901.0,0.00022603,2]
[391129978,1760380243721,-891.52786675,0.00023132,2]
[391129980,1760380243730,-153.15329576,0.00023368,2]
[391129982,1760380243739,-166.66,0.00023412,30]
[391129984,1760380243748,-405.17538203,0.00023642,2]
[391129986,1760380243757,-166.66,0.00023905,30]
[391129988,1760380243766,-166.66,0.00024398,30]
[391129990,1760380243775,-153.15329576,0.00024406,2]
[391129992,1760380243784,-1588.06,0.00024413,7]
[391129994,1760380243794,-500.0,0.00024531,2]
[391129996,1760380243805,-500.0,0.00024531,2]
[391129998,1760380243814,-218.73634383,0.00024531,2]
[391130000,1760380243823,-891.52786675,0.00024767,2]
[391130002,1760380243832,-58050.5408106,0.000248,3]
[391130004,1760380243841,-166.66,0.0002489,30]
[391130006,1760380243851,-500.0,0.00024932,2]
[391130008,1760380243860,-500.0,0.00024932,2]
[391130010,1760380243869,-687.4113758,0.00025181,2]
[391130012,1760380243879,-166.66,0.00025383,30]
[391130014,1760380243888,-153.15329576,0.00025445,2]
[391130017,1760380243899,-901.0,0.00025603,2]
[391130019,1760380243908,-166.66,0.00025876,30]
[391130021,1760380243917,-891.52786675,0.00026402,2]
[391130023,1760380243926,-153.15329576,0.00026484,2]
[391130024,1760380243935,-152.0,0.00026569,3]
[391130026,1760380243944,-168.0,0.00026601,2]
[391130028,1760380243953,-150.0,0.00026729,4]
[391130030,1760380243962,-761.55651747,0.00026884,2]
[391130032,1760380243972,-163.69,0.0002689,2]
[391130034,1760380243981,-2259.38648204,0.000272,2]
[391130036,1760380243991,-152.0,0.00027273,4]
[391130038,1760380244000,-537.24,0.00027327,2]
[391130040,1760380244009,-500.0,0.00027376,5]
[391130042,1760380244019,-19350.1802702,0.00027376,3]
[391130044,1760380244028,-532.22,0.00027386,2]
[391130046,1760380244037,-1000.0,0.00027397,7]
[391130048,1760380244046,-716.82464584,0.00027436,2]
[391130050,1760380244057,-260.46903378,0.00027498,7]
[391130053,1760380244068,-227.91040457,0.00027498,7]
[391130055,1760380244077,-325.58629238,0.00027498,7]
[391130056,1760380244087,-293.02766302,0.00027498,7]
[391130058,1760380244097,-1000.0,0.00027505,7]
[391130060,1760380244106,-153.15329576,0.00027523,2]
[391130063,1760380244117,-1000.0,0.00027612,7]
[391130065,1760380244126,-500.0,0.0002765,10]
[391130067,1760380244135,-1000.0,0.0002772,7]
[391130069,1760380244144,-354.63009,0.0002776,2]
[391130071,1760380244154,-716.82464585,0.00027787,2]
[391130073,1760380244163,-1000.0,0.00027827,7]
[391130075,1760380244172,-14380.5755662,0.00027896,2]
[391130077,1760380244181,-379.07,0.00027924,10]
[391130079,1760380244191,-1000.0,0.00027934,7]
[391130081,1760380244199,-581.94862382,0.00027974,2]
[391130083,1760380244210,-151.0,0.00027975,2]
[391130085,1760380244219,-152.0,0.00027978,5]
[391130087,1760380244228,-150.0,0.00028,60]
[391130089,1760380244239,-500.0,0.00028,60]
[391130091,1760380244251,-500.0,0.00028,60]
[391130093,1760380244261,-250.0,0.00028,60]
[391130095,1760380244271,-500.0,0.00028,60]
[391130097,1760380244281,-500.0,0.00028,60]
[391130099,1760380244294,-150.0,0.00028,60]
[391130101,1760380244310,-523.0,0.00028,14]
[391130103,1760380244320,-500.0,0.00028,60]
[391130105,1760380244330,-150.0,0.00028,60]
[391130107,1760380244341,-150.0,0.00028,2]
[391130109,1760380244361,-500.0,0.00028,60]
[391130111,1760380244383,-150.0,0.00028,2]
[391130113,1760380244403,-8876.69180492,0.00028,30]
[391130115,1760380244424,-19350.1802702,0.00028032,3]
[391130117,1760380244438,-891.52786675,0.00028037,2]
[391130119,1760380244447,-1000.0,0.00028042,7]
[391130121,1760380244456,-200.0,0.00028042,2]
[391130123,1760380244465,-151.0,0.00028042,3]
[391130125,1760380244474,-151.0,0.00028042,3]
[391130127,1760380244483,-151.0,0.00028042,3]
[391130129,1760380244493,-1000.0,0.00028042,2]
[391130131,1760380244502,-151.0,0.00028042,3]
[391130133,1760380244511,-151.0,0.00028042,3]
[391130135,1760380244519,-151.0,0.00028042,3]
[391130137,1760380244528,-151.0,0.00028042,3]
[391130139,1760380244537,-151.0,0.00028042,3]
[391130141,1760380244546,-151.0,0.00028042,3]
[391130143,1760380244556,-151.0,0.00028042,3]
[391130145,1760380244565,-151.0,0.00028042,3]
[391130183,1760380244917,-151.0,0.00028042,3]
[391130185,1760380244927,-151.0,0.00028042,3]
[391130187,1760380244937,-151.0,0.00028042,3]
[391130189,1760380244947,-151.0,0.00028042,3]
[391130191,1760380244956,-151.0,0.00028042,3]
[391130193,1760380244965,-151.0,0.00028042,3]
[391130195,1760380244975,-151.0,0.00028042,3]
[391130198,1760380244985,-151.0,0.00028042,3]
[391130199,1760380244994,-151.0,0.00028042,3]
[391130201,1760380245003,-151.0,0.00028042,3]
[391130203,1760380245012,-151.0,0.00028042,3]
[391130206,1760380245023,-151.0,0.00028042,3]
[391130207,1760380245032,-151.0,0.00028042,3]
[391130209,1760380245041,-151.0,0.00028042,3]
[391130211,1760380245051,-151.0,0.00028042,3]
[391130214,1760380245062,-151.0,0.00028042,3]
[391130216,1760380245071,-151.0,0.00028042,3]
[391130218,1760380245081,-151.0,0.00028042,3]
[391130220,1760380245090,-151.0,0.00028042,3]
[391130222,1760380245100,-151.0,0.00028042,3]
[391130224,1760380245109,-151.0,0.00028042,3]
[391130226,1760380245118,-151.0,0.00028042,3]
[391130228,1760380245128,-151.0,0.00028042,3]
[391130230,1760380245138,-151.0,0.00028042,3]
[391130232,1760380245148,-151.0,0.00028042,3]
[391130234,1760380245157,-151.0,0.00028042,3]
[391130236,1760380245167,-151.0,0.00028042,3]
[391130238,1760380245176,-151.0,0.00028042,3]
[391130240,1760380245185,-151.0,0.00028042,3]
[391130242,1760380245194,-214.53825864,0.00028042,3]
[391130244,1760380245203,-151.0,0.00028042,3]
[391130246,1760380245212,-151.0,0.00028042,3]
[391130248,1760380245222,-151.0,0.00028042,3]
[391130250,1760380245231,-151.0,0.00028042,3]
[391130252,1760380245240,-151.0,0.00028042,3]
[391130254,1760380245249,-151.0,0.00028042,3]
[391130256,1760380245259,-151.0,0.00028042,3]
[391130258,1760380245268,-151.0,0.00028042,3]
[391130260,1760380245277,-151.0,0.00028042,3]
[391130262,1760380245286,-151.0,0.00028042,3]
[391130264,1760380245295,-150.0,0.00028055,60]
[391130266,1760380245304,-500.0,0.00028055,60]
[391130268,1760380245314,-500.0,0.00028055,60]
[391130270,1760380245324,-500.0,0.00028055,60]
[391130272,1760380245333,-500.0,0.00028055,60]
[391130274,1760380245342,-150.0,0.00028055,60]
[391130276,1760380245352,-523.0,0.00028055,14]
[391130278,1760380245362,-500.0,0.00028055,60]
[391130280,1760380245371,-150.0,0.00028055,60]
[391130282,1760380245380,-500.0,0.00028055,60]
[391130284,1760380245393,-173.0,0.0002809,120]
[391130286,1760380245402,-172.0,0.00028099,120]
[391130288,1760380245411,-2223.41,0.000281,7]
[391130290,1760380245420,-280.73869242,0.000281,7]
[391130292,1760380245431,-150.0,0.0002811,60]
[391130294,1760380245440,-500.0,0.0002811,60]
[391130296,1760380245449,-500.0,0.0002811,60]
[391130298,1760380245459,-500.0,0.0002811,60]
[391130300,1760380245469,-500.0,0.0002811,60]
[391130302,1760380245479,-150.0,0.0002811,60]
[391130304,1760380245488,-523.0,0.0002811,14]
[391130306,1760380245497,-500.0,0.0002811,60]
[391130308,1760380245507,-150.0,0.0002811,60]
[391130310,1760380245516,-500.0,0.0002811,60]
[391130312,1760380245525,-201.0,0.00028111,120]
[391130314,1760380245535,-1000.0,0.00028149,7]
[391130316,1760380245544,-396.0,0.00028153,5]
[391130318,1760380245553,-200.0,0.00028153,2]
[391130320,1760380245563,-200.0,0.00028154,2]
[391130322,1760380245572,-150.0,0.00028164,60]
[391130324,1760380245581,-500.0,0.00028164,60]
[391130326,1760380245591,-264.0,0.00028164,60]
[391130328,1760380245601,-580.90669013,0.00028164,60]
[391130330,1760380245610,-500.0,0.00028164,60]
[391130332,1760380245620,-150.0,0.00028164,60]
[391130334,1760380245629,-523.0,0.00028164,14]
[391130335,1760380245639,-500.0,0.00028164,60]
[391130336,1760380245648,-150.0,0.00028164,60]
[391130337,1760380245657,-500.0,0.00028164,60]
[391130338,1760380245666,-507.64517754,0.00028216,30]
[391130339,1760380245675,-150.0,0.00028219,60]
[391130340,1760380245683,-500.0,0.00028219,60]
[391130341,1760380245694,-500.0,0.00028219,60]
[391130342,1760380245703,-150.0,0.00028219,60]
[391130343,1760380245713,-523.0,0.00028219,14]
[391130346,1760380245723,-500.0,0.00028219,60]
[391130348,1760380245738,-166.0,0.00028219,60]
[391130350,1760380245748,-500.0,0.00028219,60]
[391130352,1760380245757,-168.0,0.00028244,2]
[391130353,1760380245766,-1000.0,0.00028257,7]
[391130356,1760380245776,-19350.1802702,0.00028264,3]
[391130357,1760380245785,-250.0,0.00028274,60]
[391130360,1760380245794,-261.15973441,0.00028274,60]
[391130362,1760380245804,-500.0,0.00028274,60]
[391130364,1760380245814,-202.0,0.00028274,60]
[391130366,1760380245824,-523.0,0.00028274,14]
[391130368,1760380245833,-500.0,0.00028274,60]
[391130370,1760380245842,-500.0,0.00028274,60]
[391130372,1760380245851,-500.0,0.00028329,60]
[391130374,1760380245861,-523.0,0.00028329,14]
[391130376,1760380245870,-500.0,0.00028329,60]
[391130378,1760380245879,-500.0,0.00028329,60]
[391130380,1760380245888,-11298.06940475,0.00028331,2]
[391130382,1760380245898,-11298.06940475,0.00028335,2]
[391130383,1760380245907,-4376.54908063,0.00028337,2]
[391130385,1760380245916,-197.92970767,0.00028343,2]
[391130387,1760380245926,-17277.46546975,0.00028344,2]
[391130389,1760380245935,-35122.35526149,0.00028346,2]
[391130391,1760380245945,-4431.84783692,0.00028346,2]
[391130393,1760380245954,-81313.17652038,0.00028347,2]
[391130395,1760380245964,-11298.06940475,0.00028349,2]
[391130397,1760380245973,-561.21435804,0.00028349,2]
[391130399,1760380245982,-2767.09396353,0.00028351,2]
[391130401,1760380245992,-35122.35526149,0.00028354,2]
[391130403,1760380246001,-168.36430741,0.00028356,2]
[391130405,1760380246010,-212.6722253,0.00028361,2]
[391130407,1760380246019,-1000.0,0.00028364,7]
[391130409,1760380246029,-255.29308583,0.00028367,2]
[391130412,1760380246040,-35122.35526149,0.00028371,2]
[391130414,1760380246049,-212.6722253,0.00028372,2]
[391130416,1760380246058,-151.0,0.00028372,3]
[391130418,1760380246068,-168.36430741,0.00028373,2]
[391130419,1760380246077,-10062.77424304,0.00028378,2]
[391130421,1760380246087,-197.92970767,0.0002838,2]
[391130423,1760380246096,-161054.82023703,0.00028381,2]
[391130433,1760380246174,-160.0,0.00015,2]
[391130435,1760380246184,-947.4871482,0.00021465,2]
[391130437,1760380246193,-159.80927871,0.00022313,2]
[391130439,1760380246202,-9653.61339201,0.00028381,2]
[391130441,1760380246214,-6584.79332352,0.00028381,2]
[391130443,1760380246228,-13380.54152086,0.00028381,2]
[391130446,1760380246239,-52211.42268979,0.00028381,2]
[391130450,1760380246275,-57915.4082643,0.00028381,2]
[391130874,1760380278152,2000.0,0.00025417,120]
[391130875,1760380278187,1300.43565522,0.00023312,120]
[391130888,1760381375708,5000.0,0.00012999,4]
[391130889,1760381378676,-312.51526167,0.00012999,4]
[391130890,1760381404106,9177.80522743,0.00012,2]
[391130902,1760381431868,-1200.0,0.00012998,2]
[391130903,1760381431886,-200.0,0.00013034,2]
[391130904,1760381431898,-250.0,0.00013222,2]
[391130905,1760381431908,-195.0,0.00014298,2]
[391130906,1760381431919,-300.0,0.00014298,2]
[391130907,1760381431929,-300.0,0.00014298,2]
[391130908,1760381431939,-300.0,0.00014298,2]
[391130909,1760381431949,-300.0,0.00014298,2]
[391130910,1760381431959,-195.92069122,0.00014298,2]
[391130911,1760381431969,-195.0,0.00014337,2]
[391130912,1760381431979,-250.0,0.00014337,2]
[391130913,1760381431989,-195.0,0.00014337,2]
[391130914,1760381431999,-195.0,0.0001475,2]
[391130915,1760381432010,-250.0,0.00017,2]
[391130916,1760381432019,-6582.88,0.00019339,2]
[391130917,1760381432028,-150.99,0.00019339,2]
[391130918,1760381432038,-999.99,0.00019339,2]
[391130919,1760381432048,-267.46074303,0.00021557,2]
[391130920,1760381432057,-901.0,0.00024149,2]
[391130921,1760381432068,-151.0,0.00024349,2]
[391130922,1760381432078,-151.0,0.00024349,2]
[391130923,1760381432088,-151.0,0.00024349,2]
[391130924,1760381432097,-151.0,0.00024349,2]
[391130925,1760381432106,-151.0,0.00024349,2]